Cogmind - Beta 16 --- EXPLORER MODE // 2026.01.07 @ 16:31:35 Player: K.K.Y. Result: Destroyed by AG-15966 with Assembled Focal Cannon Performance ------------- Evolutions (4) 2000 Regions Visited (10) 2000 Robots Destroyed (195) 975 Value Destroyed (7618) 7618 Prototype IDs (38) 760 Alien Tech Used (1) 200 Bonus (4760) 4760 TOTAL SCORE: 18313 Bonus ------- Follower Combat Kills 457 Delivered SUBCON Basin 2000 Met Imprinter 300 Was Imprinted 300 Destroyed Z-Imprinter 1000 Triggered Deep Caves Wall 500 Exposed GOLEM Chamber 500 Friendly Fire -297 Cogmind --------- Core Integrity 0/850 Matter 278/300 Energy 100/100 System Corruption 0% Temperature Cool (-88) Movement Core (1500) Ox29 Location -6/Deep Caves Parts ------- > --- POWER (2) -------- (None) > --- PROPULSION (4) --- (None) > --- UTILITY (8) ------ Advanced Heat Sink Huge Storage Unit Tech Extrapolator > --- WEAPON (3) ------- Force Rifle Phasing Sabre > --- INVENTORY (25) --- Huge Storage Unit Machine Analyzer IFF Parser Advanced ECM Suite EM Shield Hacking Suite Dynamic Insulation System System Guard Improved Corruption Screen Improved Recalibrator Storm Laser Mining Laser Plasma Cutter Multitool Stasis Beam Shock Maul GAL Module Peak State ------------ > --- POWER ------------ Zionite Light DM Reactor Zionite Light DM Reactor > --- PROPULSION ------- Improved Medium Treads Improved Medium Treads Improved Medium Treads Improved Medium Treads > --- UTILITY ---------- Improved Cooling System Huge Storage Unit Advanced Sensor Array Zionite Heavy Carapace Experimental Thermal Shield Tech Extrapolator Corruption Screen > --- WEAPON ----------- Ion Burst Cannon Hardcell Cannon Improved Remote Datajack > --- INVENTORY -------- Improved Cryofiber Web Huge Storage Unit Machine Analyzer IFF Parser Advanced ECM Suite EM Shield Advanced Shield Generator Hacking Suite Dynamic Insulation System System Guard Improved Corruption Screen Improved Recalibrator Hacking Drone Bay Force Rifle Storm Laser Mining Laser Plasma Cutter Multitool Stasis Beam Shock Maul Phasing Sabre GAL Module [Rating: 108] Favorites ----------- Power Light Angular Momentum Engine Engine Light Angular Momentum Engine Power Core Fission Core Reactor Zionite Light DM Reactor Propulsion Improved Medium Treads Treads Improved Medium Treads Leg Zionite Composite Leg I Utility Huge Storage Unit Device Improved Cooling System Storage Huge Storage Unit Processor Tech Extrapolator Hackware Hacking Suite Protection Improved Powered Armor Weapon Hardcell Cannon Energy Gun Force Rifle Energy Cannon Ion Burst Cannon Ballistic Gun Assault Rifle Ballistic Cannon Hardcell Cannon Special Weapon Improved Remote Datajack Impact Weapon Shock Maul Slashing Weapon Phasing Sabre Special Melee Weapon Improved Datajack Build | -11 -10 -10 -10 -9 -9 -6 -6 -6 -6 -6 ------- Run | Yrd Mat Min Sub Rec Scr Fac Low Low Zio Dee Slots Evolved 9 | . 1 . . . . 8 . . . . Power 1 | . . . . . . 1 . . . . Propulsion 2 | . . . . . . 2 . . . . Utility 6 | . 1 . . . . 5 . . . . Weapon . | . . . . . . . . . . . Parts Attached 121 | 7 6 . 9 1 10 61 1 5 2 19 Power 18 | 1 1 . . . . 8 . 2 1 5 Engine 7 | 1 1 . . . . 3 . 2 . . Core 6 | . . . . . . 5 . . 1 . Reactor 5 | . . . . . . . . . . 5 Propulsion 18 | 2 . . 2 1 1 10 . . . 2 Treads 16 | 2 . . 2 1 1 10 . . . . Leg 2 | . . . . . . . . . . 2 Wheel . | . . . . . . . . . . . Hover . | . . . . . . . . . . . Flight . | . . . . . . . . . . . Utility 51 | 2 2 . 4 . 4 27 1 2 1 8 Device 26 | . . . 1 . 3 15 1 1 1 4 Storage 7 | 1 . . 1 . 1 4 . . . . Processor 3 | . . . . . . 3 . . . . Hackware 1 | . . . . . . 1 . . . . Protection 14 | 1 2 . 2 . . 4 . 1 . 4 Artifact . | . . . . . . . . . . . Weapon 34 | 2 3 . 3 . 5 16 . 1 . 4 Energy Gun 9 | . . . . . 2 5 . . . 2 Energy Cannon 4 | . . . . . . 4 . . . . Ballistic Gun 6 | 2 . . . . 2 2 . . . . Ballistic Cannon 6 | . . . 3 . . 3 . . . . Launcher . | . . . . . . . . . . . Special Weapon 5 | . 3 . . . 1 . . 1 . . Impact Weapon 1 | . . . . . . 1 . . . . Slashing Weapon 1 | . . . . . . . . . . 1 Piercing Weapon . | . . . . . . . . . . . Special Melee Weapon 2 | . . . . . . 1 . . . 1 Unidentified Prototypes 19 | . . . . . . 10 . 1 1 7 Parts Lost 32 | . 2 . . 1 . 13 . . . 16 Power 3 | . . . . . . 1 . . . 2 Propulsion 8 | . . . . . . 4 . . . 4 Utility 16 | . 1 . . 1 . 7 . . . 7 Weapon 5 | . 1 . . . . 1 . . . 3 Highest Loss Streak 16 | . 1 . . 1 . 4 . . . 16 To Critical Strikes . | . . . . . . . . . . . Average Backups 20 | . 3 6 8 14 24 23 21 23 23 20 Power . | . . . . . . . . . . . Propulsion . | . . . 1 . . . . . . . Utility 11 | . 2 5 5 7 12 11 13 15 16 12 Weapon 5 | . 1 1 1 3 8 10 5 4 4 4 Tool/Special . | . . . . . . . . . . . Unused Backups 54 | . . . 1 . 3 18 8 10 3 11 Power 2 | . . . . . . . 1 1 . . Propulsion 2 | . . . . . . 1 . 1 . . Utility 24 | . . . 1 . 2 2 3 6 2 8 Weapon 24 | . . . . . 1 15 4 2 1 1 Tool/Special 2 | . . . . . . . . . . 2 Average Slot Usage (%) 94 | . 95 100 100 92 96 93 100 92 89 94 Engine 8 | . 12 12 12 12 12 3 12 11 7 1 Core 2 | . . . . . . 7 . . 2 1 Treads 23 | . 25 25 25 25 25 21 25 23 23 22 Device 17 | . . . 10 12 21 24 18 17 16 17 Storage 7 | . 12 12 12 12 12 5 6 5 5 5 Processor 7 | . . . . . . 8 12 11 11 10 Protection 6 | . 23 25 13 5 . 4 11 4 1 6 Energy Cannon 4 | . . . . . . 5 6 5 5 4 Ballistic Gun 1 | . 12 24 2 . 9 . . . . . Ballistic Cannon 7 | . . . 22 25 7 3 6 5 5 4 Special Weapon 1 | . 8 . . . . . . 3 5 4 Peak Build Rating 108 | 7 8 9 32 32 30 100 89 103 103 108 Average Rating 72 | 5 7 8 13 19 24 84 88 96 101 101 On Entrance 43 | . 7 8 9 32 17 27 86 89 103 95 Avg Prop Armor Cover (%) . | . . . . . . . . . . . Naked Turns . | . . . . . . . . . . . Heaviest Build 145 | 19 24 22 95 95 95 138 145 144 144 144 Greatest Support 121 | 40 40 40 40 40 43 121 120 120 120 120 Greatest Overweight (x) 44 | . . . 2 2 2 3 1 1 1 44 Average Overweight (x) . | . . . . 1 2 . 1 1 1 1 Largest Inventory Capacity 25 | 10 10 10 25 25 25 25 25 25 25 25 Average Capacity 22 | 8 10 10 10 20 25 25 25 25 25 25 Most Carried 25 | 5 5 9 25 25 25 25 25 25 25 25 Average Carried 22 | . 3 7 10 19 24 24 24 24 24 24 Final Capacity 25 | 10 10 10 25 25 25 25 25 25 25 25 Final Carried 25 | 1 5 9 25 25 25 25 25 25 25 20 Class Distribution -------------------- 70% | Hacker-Mutant 16% | Hacker-Gunner 8% | Hacker-Tank 4% | Hacker-Skirmisher Dominant Class ---------------- Hacker-Mutant | -10/Materials Hacker-Mutant | -10/Mines Hacker-Mutant | -10/Subcaves Hacker-Mutant | -9/Recycling Hacker-Mutant | -9/Scraptown Hacker-Mutant | -6/Factory Hacker-Mutant | -6/Lower Caves Hacker-Gunner | -6/Lower Caves Hacker-Gunner | -6/Zion Hacker-Tank | -6/Deep Caves Resources | -11 -10 -10 -10 -9 -9 -6 -6 -6 -6 -6 ----------- Run | Yrd Mat Min Sub Rec Scr Fac Low Low Zio Dee Matter Collected 6558 | 268 217 122 673 267 157 1649 460 1983 221 541 Remotely . | . . . . . . . . . . . Salvage Created 8095 | 108 301 32 375 168 . 5175 633 929 . 374 Parts 355 | 7 22 4 24 9 . 228 19 32 . 10 Haulers Intercepted 10 | . 2 . . . . 8 . . . . Recyclers Shooed 7 | . . . . . . 7 . . . . Parts Field Recycled . | . . . . . . . . . . . Retrieved Matter . | . . . . . . . . . . . Parts Self-Destructed . | . . . . . . . . . . . Prevented . | . . . . . . . . . . . Parts Restored . | . . . . . . . . . . . Kills | -11 -10 -10 -10 -9 -9 -6 -6 -6 -6 -6 ------- Run | Yrd Mat Min Sub Rec Scr Fac Low Low Zio Dee Combat Hostiles Destroyed 168 | . 10 2 15 4 . 73 16 25 . 23 Melee 3 | . . . . . . . . . . 3 Guns 20 | . 9 2 . . . 9 . . . . Cannons 141 | . 1 . 15 4 . 60 16 25 . 20 AOE 3 | . . . . . . 3 . . . . Classes Destroyed 25 | 2 5 . 4 1 . 8 . 3 . 2 Worker 4 | . . . . . . 4 . . . . Builder 4 | . . . . . . 4 . . . . Tunneler 2 | 2 . . . . . . . . . . Hauler 10 | . 2 . . . . 8 . . . . Recycler 5 | 1 . . . . . 4 . . . . Mechanic 4 | . 1 . . . . 3 . . . . Operator 4 | . . . . . . 4 . . . . Turret 2 | . . . 2 . . . . . . . Watcher 9 | . 2 . . . . 7 . . . . Swarmer 31 | . 6 2 5 . . 5 3 10 . . Grunt 41 | . 4 . . . . 23 9 5 . . Brawler 3 | . . . . . . 1 1 1 . . Duelist 5 | . . . . . . 1 1 3 . . Protector 1 | . . . . . . . . 1 . . Sentry 17 | . . . . 4 . 11 1 1 . . Hunter 6 | . . . . . . 6 . . . . Programmer 26 | . . . . . . 25 . 1 . . Behemoth 2 | . . . . . . 1 1 . . . Artisan 1 | . . . 1 . . . . . . . Subdweller 10 | . . . 10 . . . . . . . Zionite 2 | . . . 2 . . . . . . . Z-Light 4 | . . . . . . . . . . 4 Thief 2 | . . . . . . . . 2 . . Assembled 19 | . . . . . . . . . . 19 Mutant 1 | . . . . . . . . 1 . . Best Kill Streak 18 | 2 4 2 6 1 . 7 7 6 . 18 Combat Bots Only 18 | . 4 2 4 1 . 7 7 6 . 18 Max Kills in Single Turn 4 | 1 1 1 2 1 . 4 2 2 . 2 Gunslinging . | . . . . . . . . . . . Exploded 2 | . . . . . . 2 . . . . Melee 1 | . . . . . . . . . . 1 Uniques/NPCs Destroyed 1 | . . . . . . . . . . 1 Z-Imprinter (-6/Deep Caves) Combat | -11 -10 -10 -10 -9 -9 -6 -6 -6 -6 -6 -------- Run | Yrd Mat Min Sub Rec Scr Fac Low Low Zio Dee Hostile Shots Fired 1110 | . 59 2 114 10 . 575 61 69 . 220 Missed 365 | . 16 . 48 3 . 210 13 17 . 58 Hits 745 | . 43 2 66 7 . 365 48 52 . 162 Melee 12 | . . . . . . . . 4 . 8 Projectile 733 | . 43 2 66 7 . 365 48 48 . 154 AOE 1 | . . . 1 . . . . . . . Critical Strikes 20 | . 1 . 1 1 . 10 1 4 . 2 Part Disruptions 1 | . . . . . . . . . . 1 Damage Taken 7259 | . 376 9 442 67 . 3159 638 556 . 2012 Core 979 | . 31 . 75 11 . 363 19 31 . 449 Absorbed by Shields 527 | . . . . . . 204 . . . 323 Redirected to Shielding 1 | . . 1 . . . . . . . . Ignored by Resistances 5386 | . 244 7 283 41 . 2195 378 333 . 1905 Regen/Repaired (Parts) 1019 | . . . . . 644 375 . . . . Core Remaining (%) 76 | 100 . . . . 53 . . . . . Volleys Fired 612 | 8 75 3 72 19 . 273 30 92 . 40 Largest 2 | 2 2 1 2 2 . 2 2 2 . 2 Hottest 155 | 40 120 20 120 66 . 155 155 155 . 155 Shots Fired 1102 | 16 101 3 144 38 . 549 60 134 . 57 Gun 189 | 16 85 3 13 . . 68 . . . 4 Cannon 894 | . . . 130 38 . 481 60 134 . 51 Launcher . | . . . . . . . . . . . Special 19 | . 16 . 1 . . . . . . 2 Kinetic 526 | 16 85 3 143 38 . 152 30 42 . 17 Thermal 574 | . 16 . 1 . . 397 30 92 . 38 Explosive . | . . . . . . . . . . . Electromagnetic . | . . . . . . . . . . . Robot Hit Streak 64 | 12 56 59 64 8 . 22 27 31 . 9 Robot Miss Streak 3 | 1 1 . 1 1 . 3 3 3 . 3 Penetration Max 1 | . . . . . . 1 . . . . Secondary Targets 1 | . . . . . . 1 . . . . Max Gunslinging Chain 1 | . . . . . . 1 . . . . Shots Hit Robots 730 | 13 82 3 73 13 . 387 46 64 . 49 Core Hits 390 | 5 22 2 27 6 . 212 37 45 . 34 Critical Kills 3 | . 1 . . . . 2 . . . . Critical Parts Destroyed 2 | . . . . . . 2 . . . . Critical Strikes 18 | . 1 . 3 . . 9 2 2 . 1 Meltdown 1 | . . . . . . 1 . . . . Destroy 4 | . 1 . . . . 3 . . . . Blast 13 | . . . 3 . . 5 2 2 . 1 Melee Attacks 4 | . . . . . . 1 . . . 3 Impact . | . . . . . . . . . . . Slashing 3 | . . . . . . . . . . 3 Piercing . | . . . . . . . . . . . Sneak Attacks 1 | . . . . . . 1 . . . . Combat Hostiles . | . . . . . . . . . . . Follow-up Attacks . | . . . . . . . . . . . Damage Inflicted 25352 | 145 1104 41 1476 284 . 14957 2279 2861 . 2205 Guns 2448 | 145 909 41 68 . . 1189 . . . 96 Cannons 21422 | . . . 1408 284 . 12636 2279 2861 . 1954 Explosions 1132 | . . . . . . 1132 . . . . Melee 155 | . . . . . . . . . . 155 Ramming 3 | . 3 . . . . . . . . . Kinetic 7832 | 145 909 41 1476 284 . 2934 673 934 . 436 Thermal 17081 | . 192 . . . . 11742 1606 1927 . 1614 Explosive . | . . . . . . . . . . . Electromagnetic 281 | . . . . . . 281 . . . . Impact . | . . . . . . . . . . . Slashing 155 | . . . . . . . . . . 155 Piercing . | . . . . . . . . . . . Highest Corruption 5 | . . . . . . 5 . . . . Average Corruption 2 | . . . . . . 2 . . . . Corruption Purged 9 | . . . . . . 9 . . . . Corruption Blocked 1 | . . . . . . 1 . . . . Effects 95 | . . . . . . 95 . . . . Message Errors 22 | . . . . . . 22 . . . . Matter Fused 21 | . . . . . . 21 . . . . Heat Flow Errors 17 | . . . . . . 17 . . . . Energy Discharges 11 | . . . . . . 11 . . . . Parts Rejected 1 | . . . . . . 1 . . . . Parts Fused 1 | . . . . . . 1 . . . . Data Loss (minor) 10 | . . . . . . 10 . . . . Data Loss (major) 7 | . . . . . . 7 . . . . Misfires 5 | . . . . . . 5 . . . . Overload Shots . | . . . . . . . . . . . Overflow Damage 798 | . . . 15 . . 499 52 135 . 97 Projectiles 781 | . . . 15 . . 488 52 135 . 91 Explosions 11 | . . . . . . 11 . . . . Melee 6 | . . . . . . . . . . 6 Knockbacks 39 | . . . 15 . . 11 3 6 . 4 Impact . | . . . . . . . . . . . Kinetic 37 | . . . 14 . . 10 3 6 . 4 Secondary 2 | . . . 1 . . 1 . . . . Self-Inflicted Damage 109 | . . . . . . 109 . . . . Shots 2 | . . . . . . 2 . . . . Rammed 2 | . 2 . . . . . . . . . Targets Rammed 2 | . 2 . . . . . . . . . Kicked . | . . . . . . . . . . . Crushed . | . . . . . . . . . . . Highest Temperature 361 | 12 296 . 15 57 . 361 180 231 . 318 Average Temperature 64 | 5 70 . 9 26 . 55 65 44 . 121 Received Heat Transfer 2742 | . 231 . 141 54 . 1221 255 253 . 587 Effects 6 | . . . . . . 1 . 4 . 1 Energy Bleed 2 | . . . . . . . . 1 . 1 Interference 3 | . . . . . . . . 3 . . Short Circuit 1 | . . . . . . 1 . . . . Siege Activations . | . . . . . . . . . . . Martial Activations . | . . . . . . . . . . . Shielding Activations . | . . . . . . . . . . . Robots Disrupted . | . . . . . . . . . . . Combat Hostiles . | . . . . . . . . . . . Robots Corrupted . | . . . . . . . . . . . Combat Hostiles . | . . . . . . . . . . . Parts Fried . | . . . . . . . . . . . Impact Corruptions . | . . . . . . . . . . . Robots Melted 2 | . . . . . . 2 . . . . Combat Hostiles 1 | . . . . . . 1 . . . . Parts Melted 42 | . . . . . . 36 . 6 . . Heat Transferred 21881 | . 400 . . . . 15515 1875 2138 . 1953 Parts Sabotaged . | . . . . . . . . . . . Parts Stolen . | . . . . . . . . . . . Parts Stripped . | . . . . . . . . . . . Power Chain Reactions 1 | . . . . . . 1 . . . . Alert | -11 -10 -10 -10 -9 -9 -6 -6 -6 -6 -6 ------- Run | Yrd Mat Min Sub Rec Scr Fac Low Low Zio Dee Maximum Alert Level 1 | . . . . . . 1 . . . . Low Security (%) 99 | 100 100 100 . 100 . 99 . . . . Level 1 . | . . . . . . . . . . . Level 2 . | . . . . . . . . . . . Level 3 . | . . . . . . . . . . . Level 4 . | . . . . . . . . . . . Level 5 . | . . . . . . . . . . . High Security . | . . . . . . . . . . . Max Security . | . . . . . . . . . . . Peak Influence 235 | 5 96 50 . 26 . 235 . . . . Initial 2 | . 2 . . . . . . . . . Average 8 | 1 6 1 . . . 11 . . . . Influence Increases 4163 | 15 289 50 210 95 . 2620 360 524 . . Destroy 0b10 Robot/C 2720 | . 200 40 180 80 . 1460 320 440 . . Destroy 0b10 Robot/NC 225 | 15 25 . . . . 170 . 15 . . Destroy Leader 688 | . 48 10 . . . 540 40 50 . . Allied During Kill 4 | . . . . . . . . 4 . . Successful Hack 144 | . 5 . . 8 . 131 . . . . Disable Machine 64 | . 4 . . . . 60 . . . . Destroy Structure 183 | . 7 . . 7 . 169 . . . . Lose Combat Pursuer 135 | . . . 30 . . 90 . 15 . . Influence Decreases 4163 | 10 294 50 210 95 . 2589 391 524 . . Entered New Map 20 | . 3 . . . . . 17 . . . Time Decay 3957 | 10 276 50 210 95 . 2498 374 444 . . Lost Part 106 | . 15 . . . . 91 . . . . Lost Ally 80 | . . . . . . . . 80 . . Squads Dispatched 37 | . . . . . . 36 . 1 . . Investigation 9 | . . . . . . 9 . . . . Extermination 19 | . . . . . . 19 . . . . Reinforcement 5 | . . . . . . 5 . . . . Assault 1 | . . . . . . . . 1 . . Garrison 3 | . . . . . . 3 . . . . Intercept . | . . . . . . . . . . . Searches Triggered . | . . . . . . . . . . . Construction Impeded 2 | . . . . . . 2 . . . . Haulers Reinforced 2 | . . . . . . 2 . . . . Active Scanning Responses . | . . . . . . . . . . . Cargo Convoy Interrupts . | . . . . . . . . . . . Stealth | -11 -10 -10 -10 -9 -9 -6 -6 -6 -6 -6 --------- Run | Yrd Mat Min Sub Rec Scr Fac Low Low Zio Dee Distress Signals 6 | . 1 . . . . 5 . . . . Communications Jammed . | . . . . . . . . . . . Distress Signals . | . . . . . . . . . . . Times Spotted 250 | . 26 2 26 4 . 94 16 28 . 54 Peak Tracking Total 17 | . 6 2 6 1 . 5 7 7 . 17 Tactical Retreats 7 | . . . 1 . . 5 . 1 . . Traps | -11 -10 -10 -10 -9 -9 -6 -6 -6 -6 -6 ------- Run | Yrd Mat Min Sub Rec Scr Fac Low Low Zio Dee Traps Triggered 3 | . 3 . . . . . . . . . Indirectly . | . . . . . . . . . . . Trap Hack Attempts 1 | . . . . . . 1 . . . . Triggered . | . . . . . . . . . . . Disarmed . | . . . . . . . . . . . Reprogrammed . | . . . . . . . . . . . Reused . | . . . . . . . . . . . Traps Extracted . | . . . . . . . . . . . Installed . | . . . . . . . . . . . Triggered . | . . . . . . . . . . . Machines | -11 -10 -10 -10 -9 -9 -6 -6 -6 -6 -6 ---------- Run | Yrd Mat Min Sub Rec Scr Fac Low Low Zio Dee Machines Disabled 24 | . 1 . 3 . . 15 . 4 . 1 Max in Single Turn 3 | . 1 . 1 . . 3 . 1 . 1 Garrison Access 2 | . . . . . . 2 . . . . Machines Repaired . | . . . . . . . . . . . Machines Dismantled . | . . . . . . . . . . . Machines Sabotaged . | . . . . . . . . . . . Overloaded Fab Kills . | . . . . . . . . . . . Hacking | -11 -10 -10 -10 -9 -9 -6 -6 -6 -6 -6 --------- Run | Yrd Mat Min Sub Rec Scr Fac Low Low Zio Dee Machines Accessed 58 | . 7 . 4 12 . 33 1 1 . . Terminals 28 | . 6 . . 6 . 16 . . . . Fabricators 2 | . . . . . . 2 . . . . Repair Stations 3 | . . . . . . 3 . . . . Recycling Units 12 | . 1 . . 6 . 5 . . . . Scanalyzers 4 | . . . . . . 4 . . . . Garrison Access 3 | . . . . . . 3 . . . . Total Hacks 122 | . 9 . 8 23 . 80 1 1 . . Successful 93 | . 7 . 8 19 . 57 1 1 . . Failed 29 | . 2 . . 4 . 23 . . . . Catastrophic . | . . . . . . . . . . . Database Lockouts . | . . . . . . . . . . . Manual 62 | . 8 . . 13 . 31 . . 10 . Terminals 53 | . 7 . . 9 . 37 . . . . Fabricators 6 | . . . . . . 6 . . . . Repair Stations 8 | . . . . . . 8 . . . . Recycling Units 26 | . 2 . . 14 . 10 . . . . Scanalyzers 12 | . . . . . . 12 . . . . Garrison Access 7 | . . . . . . 7 . . . . Terminal Hacks 21 | . . . 8 1 . 10 1 1 . . Record 5 | . . . 5 . . . . . . . Part Schematic 8 | . . . . 1 . 7 . . . . Robot Schematic 2 | . . . . . . 2 . . . . Robot Analysis 1 | . . . . . . 1 . . . . Open Door 3 | . . . 1 . . . 1 1 . . Proto ID Catalog 1 | . . . 1 . . . . . . . Release Object 1 | . . . 1 . . . . . . . Fabricator Hacks 4 | . . . . . . 4 . . . . Load Schematic 2 | . . . . . . 2 . . . . Build 2 | . . . . . . 2 . . . . Repair Station Hacks 6 | . . . . . . 6 . . . . Scan Component 3 | . . . . . . 3 . . . . Repair 3 | . . . . . . 3 . . . . Recycling Unit Hacks 13 | . 1 . . 7 . 5 . . . . Retrieve Components 13 | . 1 . . 7 . 5 . . . . Scanalyzer 8 | . . . . . . 8 . . . . Insert Component 4 | . . . . . . 4 . . . . Analyze 4 | . . . . . . 4 . . . . Garrison Access Hacks 2 | . . . . . . 2 . . . . Seal Access 2 | . . . . . . 2 . . . . Unauthorized Hacks 39 | . 6 . . 11 . 22 . . . . Terminals 27 | . 5 . . 6 . 16 . . . . Assimilate 2 | . . . . . . 2 . . . . Botnet 25 | . 5 . . 6 . 14 . . . . Fabricators 1 | . . . . . . 1 . . . . Fabnet 1 | . . . . . . 1 . . . . Repair Stations . | . . . . . . . . . . . Recycling Units 11 | . 1 . . 5 . 5 . . . . Reject 11 | . 1 . . 5 . 5 . . . . Scanalyzers . | . . . . . . . . . . . Garrison Access . | . . . . . . . . . . . Data Cores Recovered 2 | . . . . . . 2 . . . . Used . | . . . . . . . . . . . Hacking Detections 39 | . 3 . . 7 . 29 . . . . Full Trace Events 11 | . . . . 2 . 9 . . . . Feedback Events 2 | . . . . . . 2 . . . . Corruption 2 | . . . . . . 2 . . . . Feedback Blocked . | . . . . . . . . . . . Robot Schematics Acquired 2 | . . . . . . 2 . . . . Robots Built . | . . . . . . . . . . . Authchips . | . . . . . . . . . . . Time . | . . . . . . . . . . . Total Robot Build Rating . | . . . . . . . . . . . Part Schematics Acquired 50 | . . . . 1 . 36 4 2 7 . Parts Built 4 | . . . . . . 4 . . . . Authchips . | . . . . . . . . . . . Time 94 | . . . . . . 94 . . . . Total Part Build Rating 20 | . . . . . . 20 . . . . Part Studies Acquired . | . . . . . . . . . . . Parts Repaired 2 | . . . . . . 2 . . . . Time 109 | . . . . . . 109 . . . . Parts Recycled . | . . . . . . . . . . . Recycled Matter . | . . . . . . . . . . . Retrieved Matter . | . . . . . . . . . . . Retrieved Components 54 | . 10 . . 14 . 30 . . . . Parts Scanalyzed 4 | . . . . . . 4 . . . . Part Schematics Acquired 4 | . . . . . . 4 . . . . Parts Damaged . | . . . . . . . . . . . Bothacking | -11 -10 -10 -10 -9 -9 -6 -6 -6 -6 -6 ------------ Run | Yrd Mat Min Sub Rec Scr Fac Low Low Zio Dee Used RIF Installer . | . . . . . . . . . . . Robots Hacked 2 | . . . . . . 1 . . . 1 Non-combat 1 | . . . . . . 1 . . . . Combat 1 | . . . . . . . . . . 1 Robot Hacks Applied 2 | . . . . . . 1 . . . 1 parse_system 1 | . . . . . . . . . . 1 find_recycling 1 | . . . . . . 1 . . . . Relay Couplers Released 4 | . . . . . . 4 . . . . Programmers 4 | . . . . . . 4 . . . . Fabnet Peak Effective % . | . . . . . . . . . . . Robots Rewired 4 | . . . . . . . 2 2 . . Allies Hacked 1 | . . . . . . . . 1 . . Hacks Repelled . | . . . . . . . . . . . Allies | -11 -10 -10 -10 -9 -9 -6 -6 -6 -6 -6 -------- Run | Yrd Mat Min Sub Rec Scr Fac Low Low Zio Dee Total Allies 14 | . . 3 . . . . 2 2 7 . Largest Group 7 | . . 3 3 . . . 2 3 7 3 Highest-Rated Group 445 | . . 40 40 . . . 61 74 445 291 Highest-Rated Ally 99 | . . 16 16 . . . 32 32 99 99 Total Orders . | . . . . . . . . . . . Ally Attacks 134 | . . . 38 . . . . 14 . 82 Total Damage 4014 | . . . 304 . . . . 390 . 3320 Kills 34 | . . . 6 . . . . 1 . 27 Allies Corrupted . | . . . . . . . . . . . Allies Melted . | . . . . . . . . . . . Intel | -11 -10 -10 -10 -9 -9 -6 -6 -6 -6 -6 ------- Run | Yrd Mat Min Sub Rec Scr Fac Low Low Zio Dee Active Infowar (turns) 31120 | . . . 2728 2528 2115 11423 4081 5512 422 2311 Sensors 23746 | . . . . . . 11420 4081 5512 422 2311 Structural 11292 | . . . 2728 2528 2115 3921 . . . . Robot Analysis Total 1 | . . . . . . 1 . . . . Derelict Logs Recovered 8 | . . . 1 . . . 1 3 3 . Drone Launches 1 | . . . . . . . . . . 1 Drone Recoveries . | . . . . . . . . . . . Exploration | -11 -10 -10 -10 -9 -9 -6 -6 -6 -6 -6 ------------- Run | Yrd Mat Min Sub Rec Scr Fac Low Low Zio Dee Turns Passed 41604 | 97 1671 988 3135 2528 2305 11497 4081 9274 3644 2384 Spaces Moved 16171 | 53 824 593 1651 904 671 4288 1592 3257 1461 877 Core 23 | 22 . . . . . . . . . 1 Treads 16148 | 31 824 593 1651 904 671 4288 1592 3257 1461 876 Legs . | . . . . . . . . . . . Wheels . | . . . . . . . . . . . Hover . | . . . . . . . . . . . Flight . | . . . . . . . . . . . Fastest Speed 50 | 50 160 160 160 160 340 160 240 240 240 240 Average Speed 228 | 114 160 160 164 263 340 230 240 240 240 242 Slowest Speed 2250 | 160 160 160 340 340 340 400 240 240 240 2250 Overloaded Moves . | . . . . . . . . . . . Propulsion Burnouts . | . . . . . . . . . . . Robots Hopped . | . . . . . . . . . . . Potential Cave-ins 2 | . . . . . . 2 . . . . Cave-ins Triggered . | . . . . . . . . . . . Exploration Rate (%) 82 | 4 98 99 89 99 49 96 99 99 92 85 Regions Visited 10 Branch Regions 8 Pre-discovered Areas 2 | . . . 2 . . . . . . . Known Exits Taken 10 | 1 1 1 1 1 1 1 1 1 1 . Unknown Exits Taken . | . . . . . . . . . . . Scrap Searched 24 | . . 1 6 . 6 . 3 5 3 . Spaces Dug 94 | . 5 . . 5 . 48 . 36 . . Terrain Destroyed 264 | . 7 . 3 7 . 179 11 53 . 4 Melee . | . . . . . . . . . . . Projectile 184 | . 7 . 3 7 . 99 11 53 . 4 AOE 80 | . . . . . . 80 . . . . Terrain Rammed . | . . . . . . . . . . . Walls Destroyed . | . . . . . . . . . . . Machines Disabled . | . . . . . . . . . . . Actions | -11 -10 -10 -10 -9 -9 -6 -6 -6 -6 -6 --------- Run | Yrd Mat Min Sub Rec Scr Fac Low Low Zio Dee Total 19702 | 75 1044 630 1918 1017 695 5327 1785 4545 1604 1062 Wait 2459 | . 127 30 174 66 . 585 117 1137 129 94 Move 16161 | 52 823 592 1650 903 670 4287 1591 3256 1460 877 Hop . | . . . . . . . . . . . Pick Up 112 | 6 9 3 5 18 5 34 8 19 4 1 Fast Attach 69 | 2 . . . . 3 45 1 5 1 12 Attach 32 | 6 3 1 . 2 . 8 2 1 3 6 Detach 9 | 1 . 1 . 2 . 3 1 . 1 . Swap 62 | . 3 . 12 2 10 21 . 6 1 7 Drop 149 | . 2 . 5 5 7 69 10 26 5 20 Fire 612 | 8 75 3 72 19 . 273 30 92 . 40 Melee 4 | . . . . . . 1 . . . 3 Ram . | . . . . . . . . . . . Kick . | . . . . . . . . . . . Crush 2 | . 2 . . . . . . . . . Escape Stasis . | . . . . . . . . . . . Rewire 30 | . . . . . . . 25 3 . 2 Trap 1 | . . . . . . 1 . . . . Miscellaneous . | . . . . . . . . . . . Route ------- -11/Scrapyard -10/Materials (discovered 5 exits: *Mat x3 / *Min / *Sub) -10/Mines (discovered 3 exits: *Mat x2 / *Sub) -10/Subcaves (discovered 3 exits: *Mat x2 / *Rec) -9/Recycling (discovered 2 exits: *Fac / *Scr) -9/Scraptown -6/Factory (discovered 6 exits: *Fac x4 / *Low x2) -6/Lower Caves -6/Lower Caves (discovered 2 exits: *Fac / *Zio) -6/Zion (discovered 2 exits: *Dee / *Pro) -6/Deep Caves (discovered 1 exit: *Pro) History --------- Turn | Location | Event 14 | -11/Scrapyard | Identified exit to Materials 14 | -11/Scrapyard | Discovered exit to Materials (range 16) 98 | -11/Scrapyard | Entered Materials 98 | -10/Materials | Evolved 1 slot: Utility x1 312 | -10/Materials | Build established: Hacker-Mutant 731 | -10/Materials | Identified exit to Materials 731 | -10/Materials | Discovered exit to Materials (range 13) 919 | -10/Materials | Discovered exit to Materials (range 6) 1346 | -10/Materials | Identified exit to Subcaves 1346 | -10/Materials | Discovered exit to Subcaves (range 10) 1503 | -10/Materials | Discovered exit to Materials (range 13) 1756 | -10/Materials | Identified exit to Mines 1756 | -10/Materials | Discovered exit to Mines (range 8) 1769 | -10/Materials | Entered Mines 1828 | -10/Mines | Deemed a non-threat by the Exiles lab entrance 1958 | -10/Mines | Assisted by bots powering up and referring to "LRC-V3" 2080 | -10/Mines | Discovered exit to Materials (range 3) 2141 | -10/Mines | Found a Scrap Suit stashed away for nefarious purposes 2144 | -10/Mines | Found Scrap Suit 2199 | -10/Mines | Discovered exit to Materials (range 14) 2472 | -10/Mines | Discovered exit to Subcaves (range 6) 2757 | -10/Mines | Entered Subcaves 2757 | -10/Subcaves | Accompanied by 3 allies 2758 | -10/Subcaves | Approached by a straggling Scientist 2858 | -10/Subcaves | Disturbed a concealed Subdweller 3023 | -10/Subcaves | Ambushed by angry Subdweller bent on revenge 3315 | -10/Subcaves | Disturbed a concealed Subdweller 3976 | -10/Subcaves | Visited Clippyterm 3981 | -10/Subcaves | Learned location of Extension (-4) 3981 | -10/Subcaves | Learned Factory trap positions 4213 | -10/Subcaves | Lost 3 allies 4222 | -10/Subcaves | Shifting Twisted Machinery released Sub. Beam Cannon 4277 | -10/Subcaves | Shifting Twisted Machinery released Sub. Monowheel 4286 | -10/Subcaves | Learned 4 Materials zone layouts 4383 | -10/Subcaves | Shifting Twisted Machinery released Riot Gun 4384 | -10/Subcaves | Identified exit to Materials 4384 | -10/Subcaves | Discovered exit to Materials (range 9) 4585 | -10/Subcaves | Visited 4L-MR0's lab 4605 | -10/Subcaves | Found Meta Core 4719 | -10/Subcaves | Discovered exit to Materials (range 5) 5071 | -10/Subcaves | Identified exit to Recycling 5071 | -10/Subcaves | Discovered exit to Recycling (range 15) 5304 | -10/Subcaves | A swath of the cavern ceiling suddenly collapsed 5337 | -10/Subcaves | Learned location of Zion (-6) 5337 | -10/Subcaves | Met a Zionite searching for "candidates" 5742 | -10/Subcaves | Found SUBCON Basin 5892 | -10/Subcaves | Entered Recycling 6383 | -9/Recycling | Identified exit to Factory 6383 | -9/Recycling | Discovered exit to Factory (range 15) 6461 | -9/Recycling | Scanned before Scraplab entrance 6502 | -9/Recycling | Identified exit to Scraptown 6502 | -9/Recycling | Discovered exit to Scraptown (range 11) 6512 | -9/Recycling | Entered Scraplab 8420 | -9/Recycling | Entered Scraptown 8720 | -9/Scraptown | Heard Great Nut preacher, LISTEN AND RECITE! 8815 | -9/Scraptown | Visited Awakened 8866 | -9/Scraptown | Visited Bundlers 9574 | -9/Scraptown | Visited The Evicted 9602 | -9/Scraptown | Visited Assassins FH 9670 | -9/Scraptown | Visited Comm Corps 9714 | -9/Scraptown | Visited CR-KLE's Repair Center 10284 | -9/Scraptown | Identified exit to Factory 10284 | -9/Scraptown | Discovered exit to Factory (range 13) 10538 | -9/Scraptown | CR-KLE repaired 8 parts 10725 | -9/Scraptown | Entered Factory 10725 | -6/Factory | Evolved 8 slots: Power x1, Propulsion x2, Utility x5 10726 | -6/Factory | Loaded intel: 105 trap records 10839 | -6/Factory | Attached Meta Core, gained temporary slots: Propulsion, Utility, Weapon 11026 | -6/Factory | Identified exit to Lower Caves 11026 | -6/Factory | Discovered exit to Lower Caves (range 9) 11499 | -6/Factory | Tech Extrapolator generated special schematic: Deep Structural Scanner 12835 | -6/Factory | Tech Extrapolator generated special schematic: Machine Rigger 12971 | -6/Factory | Identified exit to Factory 12971 | -6/Factory | Discovered exit to Factory (range 13) 13316 | -6/Factory | Discovered exit to Factory (range 11) 13446 | -6/Factory | Tech Extrapolator generated special schematic: Energy Deflector 14042 | -6/Factory | Noticed a derelict Sapper rigging charges 14114 | -6/Factory | Garrison activated, responded to threat 14312 | -6/Factory | Repaired Imp. Medium Treads 14387 | -6/Factory | Destroyed 7 combat bots 14603 | -6/Factory | Spotted B-75 Beast 14650 | -6/Factory | Destroyed B-75 Beast 14955 | -6/Factory | Lost 4 parts (1n3u) 15374 | -6/Factory | Discovered exit to Factory (range 3) 16121 | -6/Factory | Fabricated Imp. Medium Treads (x2) 16174 | -6/Factory | Fabricated Imp. Medium Treads (x2) 16538 | -6/Factory | Found Imp. Powered Armor 17408 | -6/Factory | Discovered exit to Lower Caves (range 16) 18201 | -6/Factory | Discovered exit to Factory (range 15) 19242 | -6/Factory | Repaired Imp. Powered Armor 22222 | -6/Factory | Entered Lower Caves 22281 | -6/Lower Caves | Found Prototype Device 22349 | -6/Lower Caves | Encountered a Warlord checkpoint 22392 | -6/Lower Caves | Spotted B-75 Beast 22410 | -6/Lower Caves | Destroyed B-75 Beast 23108 | -6/Lower Caves | Identified Heart of Steel 24614 | -6/Lower Caves | Identified exit to Lower Caves 24614 | -6/Lower Caves | Discovered exit to Lower Caves (range 15) 24806 | -6/Lower Caves | Attracted the attention of an 0b10 outpost 24882 | -6/Lower Caves | Destroyed 7 combat bots 26303 | -6/Lower Caves | Entered another Lower Caves area 26303 | -6/Lower Caves | Accompanied by 2 allies 26359 | -6/Lower Caves | Discovered exit to Factory (range 10) 26491 | -6/Lower Caves | Attracted the attention of an 0b10 outpost 26584 | -6/Lower Caves | Learned Factory security intel 27302 | -6/Lower Caves | Identified exit to Zion 27342 | -6/Lower Caves | Attacked by a delusional Derelict stockpiling parts 27980 | -6/Lower Caves | Learned Factory terminal intel 29062 | -6/Lower Caves | Found Alien Artifact 29062 | -6/Lower Caves | Identified Core Expander 29062 | -6/Lower Caves | Installed Core Expander, added new Weapon slot 29511 | -6/Lower Caves | Build established: Hacker-Tank 30363 | -6/Lower Caves | Build established: Hacker-Skirmisher 32130 | -6/Lower Caves | Build established: Hacker-Gunner 35577 | -6/Lower Caves | Entered Zion 35601 | -6/Zion | Given A8's code to call for help 35711 | -6/Zion | Identified exit to Proximity Caves 35711 | -6/Zion | Discovered exit to Proximity Caves (range 12) 35968 | -6/Zion | Visited the Megawrench Repair Shop 36542 | -6/Zion | Received a hallucinogenic algorithm 36549 | -6/Zion | Enhanced Grunt warped into view, answering call for help 36551 | -6/Zion | Ran a hallucination algorithm 36554 | -6/Zion | Enhanced Grunt warped into view, answering call for help 37263 | -6/Zion | Identified exit to Deep Caves 37418 | -6/Zion | Acquired unknown access codes intercepted by a Zionite 37793 | -6/Zion | Met Imprinter 37831 | -6/Zion | Imprinted 37833 | -6/Zion | Declared Zion's savior 38544 | -6/Zion | Given the Hacking Drone Bay 38567 | -6/Zion | Heart of Steel transformed into Warbot 38572 | -6/Zion | Found Prototype Device 38572 | -6/Zion | Identified Hacking Drone Bay 38800 | -6/Zion | Found GAL Module 38930 | -6/Zion | Found Prototype Energy Gun 38951 | -6/Zion | Identified Storm Laser 39083 | -6/Zion | Build established: Hacker-Tank 39157 | -6/Zion | Opened final containment barrier to the Deep Caves 39193 | -6/Zion | Saw the warning signs outside the Deep Caves entrance 39221 | -6/Zion | Entered Deep Caves 39221 | -6/Deep Caves | Accompanied by 7 allies (Warbot) 39559 | -6/Deep Caves | Core integrity fell below 50% 39559 | -6/Deep Caves | Attacked by Z-Imprinter 39565 | -6/Deep Caves | Allies destroyed Z-Imprinter 39626 | -6/Deep Caves | Found Prototype Protection 39626 | -6/Deep Caves | Identified Zio. Weapon Casing 39793 | -6/Deep Caves | Z-Facility disabled 39961 | -6/Deep Caves | Found Prototype Protection 39961 | -6/Deep Caves | Identified Zio. Heavy Carapace 40853 | -6/Deep Caves | Identified exit to Proximity Caves 40853 | -6/Deep Caves | Discovered exit to Proximity Caves (range 11) 40901 | -6/Deep Caves | Found Prototype Device 40901 | -6/Deep Caves | Identified Exp. Thermal Shield 41501 | -6/Deep Caves | Spotted AG-15966 41504 | -6/Deep Caves | Exposed GOLEM chamber 41505 | -6/Deep Caves | Triggered Deep Caves wall 41591 | -6/Deep Caves | Core integrity fell below 20% 41605 | -6/Deep Caves | Destroyed by AG-15966 with Assembled Focal Cannon Last Messages --------------- 41578_ as-46804 destroyed. 41578_ as-33250 destroyed. 41579_ Warbot system corrupted by crushing effect. 41580_ as-87451 destroyed. 41581_ Warbot destroyed. 41584_ Overheating: Energy bleed (-12). 41585_ Knocked back. 41587_ Exp. Thermal Shield destroyed. 41591_ Zio. Light DM Reactor destroyed. 41592_ as-21658 destroyed. 41593_ Ion Burst Cannon destroyed. 41593_ as-55013 destroyed. 41594_ Imp. Remote Datajack destroyed. 41595_ Adv. Shield Generator destroyed. 41597_ Corruption Screen destroyed. 41600_ as-24844 destroyed. 41601_ Destroyed Asb. Hover Unit. 41604_ Zio. Light DM Reactor destroyed. 41605_ Imp. Cryofiber Web destroyed. Map ----- +----------------------------------------------------+ | ????????????????????????????????# ##????## | | ????????????????????????????????## ##?######## | | ?????????????????????????????????## #### # ># | | ??????????????????????????????????# ## # | | ??????????????????????????????????# ## #### | | ?????????????????????????????????## ### ###??? | | ????????????????????????????????## ### ##??? | | ????????????????????????????????# #### | | ????????????????????????????????## | | ???????????????????????? #?????#### | | ???????????????????? =h ????????## !! ### | | ??????????????????= = #????????##% ##?? | | ??????????????? a #???######"!= ##??? | | ????????????? / #???# % #???# | | ??????????? / = = #???# "" % ##??## | | ?????????? ! ! #???# """ ###???# | | ?????????? = = #???# " ##?????# | | ?????????" M !* ** ##??# #??????# | | ????????? [ #??## #????### | | ????????# ! #?## ##???## | | ????????" ! ### ###### | | ????????" g a b ## | | ????????" a %% | | ????????""" %[[% ### | | ????????" ! %%=%a ##?# | | ?????????" !%!@ ##" #??# | | ????????" G!=%% n ### #??# # | | ?????????" ! ##?## ##?# # | | ????????" ; # ;#??### ##?# # | | ????????" #### #; ## ###????#####??# | | ????????""" ?????# ## ####?????????????## # | | ?????????" ???????##?# #?????????????????###### | | ?????????#?????????????#???????????????????????? | | | | | | | | | | | | | | | | | | | | | | | | | | | | | | | | | | | +----------------------------------------------------+ Best States ------------- Heat Dissipation 83 Energy Generation 49 Energy Capacity 510 Matter Stores 300 Matter Capacity 300 Sight Range 16 Robot Scan Range 16 Terrain Scan Density 10 Base Temperature (-) 150 EM Shielding 2 Corruption Block 8 Armor Coverage 1200 Resistance: KI 45 Resistance: TH 65 Resistance: EX 35 Resistance: EM 60 Resistance: I 35 Resistance: S 35 Resistance: P 35 Utility Shielding 33 Evasion (%) 50 Recoil Reduction 9 Offensive Hacking 30 Authchip Count 4 Item Schematics ----------------- Assault Cannon | -9/Recycling | Hacked Deep Structural Scanner | -6/Factory | Extrapolated Mak. System Restoration Module | -6/Factory | Extrapolated Adv. Signal Interpreter | -6/Factory | Scanalyzed Beamcaster | -6/Factory | Extrapolated Mak. Power Source | -6/Factory | Extrapolated Mak. Coolant Network | -6/Factory | Extrapolated 0b10 Decoder Chip [Skirmisher] | -6/Factory | Extrapolated Machine Rigger | -6/Factory | Extrapolated Multitool | -6/Factory | Extrapolated Weapon Mount | -6/Factory | Hacked Adv. Plasma Cannon | -6/Factory | Hacked Mak. Medium Armor Plating | -6/Factory | Extrapolated Mak. Ablative Armor | -6/Factory | Extrapolated Energy Deflector | -6/Factory | Extrapolated Plasma Rifle | -6/Factory | Hacked Mak. Light Armor Plating | -6/Factory | Extrapolated System Restoration Module | -6/Factory | Scanalyzed 0b10 Decoder Chip [Generic] | -6/Factory | Extrapolated 0b10 Decoder Chip [Scout] | -6/Factory | Extrapolated Mak. Core Shielding | -6/Factory | Extrapolated Adv. Focal Shield | -6/Factory | Hacked Neutrino Core | -6/Factory | Hacked Mak. Thermal Plating | -6/Factory | Extrapolated Slug Cannon | -6/Factory | Extrapolated Imp. Plasma Cutter | -6/Factory | Hacked Wave Gun | -6/Factory | Hacked Imp. Medium Treads | -6/Factory | Scanalyzed Mak. Hover Unit | -6/Factory | Extrapolated Hacking Suite | -6/Factory | Scanalyzed Mak. Trap Scanner | -6/Factory | Extrapolated Mak. Terrain Scan Processor | -6/Factory | Extrapolated Mak. Terrain Scanner | -6/Factory | Extrapolated Mak. ECM Suite | -6/Factory | Extrapolated Mak. Axe | -6/Factory | Extrapolated Mak. Kinetic Plating | -6/Factory | Extrapolated Ripper | -6/Factory | Extrapolated Hvy. Beamcaster | -6/Lower Caves | Extrapolated Arc Thrower | -6/Lower Caves | Extrapolated Enh. Flamer | -6/Lower Caves | Extrapolated Hvy. Battle Rifle | -6/Lower Caves | Extrapolated Plasma Flamer | -6/Lower Caves | Extrapolated Mak. Flight Unit | -6/Lower Caves | Extrapolated Mak. Hacking Suite | -6/Zion | Extrapolated Mak. System Shield | -6/Zion | Extrapolated Spk. Treads | -6/Zion | Extrapolated Spk. Medium Treads | -6/Zion | Extrapolated Tactical Coordination Suite | -6/Zion | Extrapolated Mak. Targeting Computer | -6/Zion | Extrapolated Mak. Weapon Shielding | -6/Zion | Extrapolated Robot Schematics ------------------ A-02 Transporter | -6/Factory | Hacked K-01 Serf | -6/Factory | Hacked Fabricated ------------ Imp. Medium Treads | x2 | -6/Factory Imp. Medium Treads | x2 | -6/Factory Repaired ---------- Imp. Medium Treads | 12% | -6/Factory Imp. Powered Armor | 16% | -6/Factory Studied --------- None Alien Tech Used ----------------- Core Expander Achievements -------------- None Challenges ------------ None Game ------ Seed GuidancePersonalChargecaster Manual? 0 Play Time 02:30:05 Cumulative 260.6 hours Start 2026.01.07 @ 13:17:45 End 2026.01.07 @ 16:31:35 Sessions 1 Manual Loads 0 Difficulty Explorer Special Mode None Game No. 411 Rogue 0 Adventurer 0 Explorer 411 Win Type - Total 0 Types 0/0/0/0/0/0/0/0/0/0 Lore% 72 Gallery% 69 Achievement% 54 Wizard Run 0 Options --------- Layout 1 ASCII 0 Keyboard 0 Movement Mouse Keybinds 0 Fullscreen 1 Font 24/Smallcaps Map View 50x35 Zoom Use 0% Tactical HUD 1 Map Filters NONE Filters NONE Steam 1 RUN: 6f34d34d-1338-42ab-bae8-0ea153b518af